[Event "Titled Tuesday Blitz December 20 Late 2022"]
[White "Biernacki, Mark"]
[Black "Ivanov, Mike"]
[WhiteFideId "2082322"]
[BlackFideId "2613158"]
[WhiteElo "1970"]
[BlackElo "2237"]
[Result "0-1"]
[Round "04"]
[TimeControl "180+1"]
[Date "2022.12.21"]
[WhiteClock "0:00:38"]
[BlackClock "0:00:16"]

1. c4 {[%clk 0:02:58]}  e5 {[%clk 0:02:59]} 2. Nc3 {[%clk 0:02:58]}  d6 {[%clk 0:03:00]} 3. Nf3 {[%clk 0:02:59]}  f5 {[%clk 0:03:00]} 4. d3 {[%clk 0:02:58]}  Nf6 {[%clk 0:03:00]} 5. g3 {[%clk 0:02:59]}  Be7 {[%clk 0:03:01]} 6. Bg2 {[%clk 0:02:59]}  O-O {[%clk 0:03:02]} 7. O-O {[%clk 0:02:59]}  Qe8 {[%clk 0:03:02]} 8. Nd5 {[%clk 0:02:59]}  Bd8 {[%clk 0:03:02]} 9. Nxf6+ {[%clk 0:02:56]}  Bxf6 {[%clk 0:03:02]} 10. Rb1 {[%clk 0:02:55]}  Qh5 {[%clk 0:02:59]} 11. b4 {[%clk 0:02:54]}  Nc6 {[%clk 0:02:51]} 12. b5 {[%clk 0:02:53]}  Nd8 {[%clk 0:02:51]} 13. a4 {[%clk 0:02:43]}  f4 {[%clk 0:02:50]} 14. Ba3 {[%clk 0:02:42]}  Bh3 {[%clk 0:02:48]} 15. c5 {[%clk 0:02:40]}  Bxg2 {[%clk 0:02:47]} 16. Kxg2 {[%clk 0:02:40]}  Nf7 {[%clk 0:02:46]} 17. cxd6 {[%clk 0:02:39]}  cxd6 {[%clk 0:02:46]} 18. Qb3 {[%clk 0:02:34]}  Kh8 {[%clk 0:02:40]} 19. Qd5 {[%clk 0:02:31]}  g5 {[%clk 0:02:37]} 20. h3 {[%clk 0:02:06]}  g4 {[%clk 0:02:29]} 21. hxg4 {[%clk 0:02:06]}  Qxg4 {[%clk 0:02:30]} 22. Rbc1 {[%clk 0:01:51]}  fxg3 {[%clk 0:02:26]} 23. fxg3 {[%clk 0:01:51]}  Rg8 {[%clk 0:02:25]} 24. Rf2 {[%clk 0:01:21]}  Qxg3+ {[%clk 0:02:15]} 25. Kf1 {[%clk 0:01:21]}  Raf8 {[%clk 0:01:55]} 26. e3 {[%clk 0:01:07]}  Ng5 {[%clk 0:01:34]} 27. Ke2 {[%clk 0:01:00]}  Nh3 {[%clk 0:01:00]} 28. Rh2 {[%clk 0:00:50]}  Be7 {[%clk 0:00:38]} 29. Rch1 {[%clk 0:00:46]}  Rxf3 {[%clk 0:00:18]} 30. Qxf3 {[%clk 0:00:45]}  Ng1+ {[%clk 0:00:18]} 31. Rxg1 {[%clk 0:00:42]}  Qxh2+ {[%clk 0:00:18]} 32. Qf2 {[%clk 0:00:28]}  Qxg1 {[%clk 0:00:17]} 33. Bxd6 {[%clk 0:00:27]}  Qxf2+ {[%clk 0:00:16]} 34. Kxf2 {[%clk 0:00:28]}  Bxd6 {[%clk 0:00:16]} 35. Kf3 {[%clk 0:00:29]}  Rd8 {[%clk 0:00:15]} 36. Ke4 {[%clk 0:00:30]}  Bc7 {[%clk 0:00:15]} 37. d4 {[%clk 0:00:31]}  exd4 {[%clk 0:00:16]} 38. exd4 {[%clk 0:00:31]}  Bb6 {[%clk 0:00:16]} 39. d5 {[%clk 0:00:32]}  Bc7 {[%clk 0:00:15]} 40. Kf5 {[%clk 0:00:33]}  Rxd5+ {[%clk 0:00:15]} 41. Ke6 {[%clk 0:00:34]}  Rc5 {[%clk 0:00:15]} 42. Ke7 {[%clk 0:00:35]}  Rc4 {[%clk 0:00:15]} 43. b6 {[%clk 0:00:36]}  Bxb6 {[%clk 0:00:15]} 44. a5 {[%clk 0:00:37]}  Bxa5 {[%clk 0:00:15]} 45. Kd6 {[%clk 0:00:38]}  Rc6+ {[%clk 0:00:16]} 0-1


[Site "https://www.chess.com"]

[Event "Titled Tuesday Blitz December 20 Late 2022"]
[White "Brodowski, Piotr"]
[Black "Caruana, Fabiano"]
[WhiteFideId "1124480"]
[BlackFideId "2020009"]
[WhiteElo "2351"]
[BlackElo "2847"]
[Result "0-1"]
[Round "04"]
[TimeControl "180+1"]
[Date "2022.12.20"]
[WhiteClock "0:01:04"]
[BlackClock "0:01:37"]

1. c4 {[%clk 0:03:00]}  e6 {[%clk 0:02:59]} 2. Nf3 {[%clk 0:02:58]}  d5 {[%clk 0:02:59]} 3. b3 {[%clk 0:02:54]}  Nf6 {[%clk 0:02:59]} 4. e3 {[%clk 0:02:54]}  b6 {[%clk 0:02:58]} 5. Qc2 {[%clk 0:02:48]}  Bb7 {[%clk 0:02:58]} 6. Be2 {[%clk 0:02:48]}  Bd6 {[%clk 0:02:56]} 7. Bb2 {[%clk 0:02:48]}  O-O {[%clk 0:02:56]} 8. g4 {[%clk 0:02:46]}  c5 {[%clk 0:02:54]} 9. g5 {[%clk 0:02:44]}  Nfd7 {[%clk 0:02:37]} 10. Rg1 {[%clk 0:02:39]}  Nc6 {[%clk 0:02:34]} 11. a3 {[%clk 0:02:33]}  d4 {[%clk 0:02:31]} 12. exd4 {[%clk 0:02:29]}  cxd4 {[%clk 0:02:32]} 13. d3 {[%clk 0:02:29]}  e5 {[%clk 0:02:17]} 14. Nbd2 {[%clk 0:02:28]}  a5 {[%clk 0:02:18]} 15. Ne4 {[%clk 0:02:10]}  Nc5 {[%clk 0:02:17]} 16. Ng3 {[%clk 0:02:10]}  Re8 {[%clk 0:02:15]} 17. O-O-O {[%clk 0:02:05]}  a4 {[%clk 0:02:13]} 18. Nd2 {[%clk 0:01:58]}  axb3 {[%clk 0:02:08]} 19. Nxb3 {[%clk 0:01:58]}  Na4 {[%clk 0:02:08]} 20. Nf5 {[%clk 0:01:57]}  Nxb2 {[%clk 0:02:06]} 21. Nxd6 {[%clk 0:01:58]}  Nxd1 {[%clk 0:01:55]} 22. Nxb7 {[%clk 0:01:56]}  Qe7 {[%clk 0:01:54]} 23. Bxd1 {[%clk 0:01:49]}  Rxa3 {[%clk 0:01:52]} 24. Bf3 {[%clk 0:01:45]}  Nb4 {[%clk 0:01:51]} 25. Qb1 {[%clk 0:01:42]}  Na2+ {[%clk 0:01:41]} 26. Kc2 {[%clk 0:01:10]}  Nc3 {[%clk 0:01:38]} 27. Kd2 {[%clk 0:01:04]}  Nxb1+ {[%clk 0:01:37]} 0-1


[Site "https://www.chess.com"]

[Event "Titled Tuesday Blitz December 20 Late 2022"]
[White "Burke, Paul"]
[Black "Pappelis, Dimitrios"]
[WhiteFideId "2605767"]
[BlackFideId "4215281"]
[WhiteElo "1782"]
[BlackElo "2104"]
[Result "0-1"]
[Round "04"]
[TimeControl "180+1"]
[Date "2022.12.21"]
[WhiteClock "0:02:28"]
[BlackClock "0:02:30"]

1. e4 {[%clk 0:02:49]}  c5 {[%clk 0:02:58]} 2. d4 {[%clk 0:02:48]}  cxd4 {[%clk 0:02:57]} 3. c3 {[%clk 0:02:49]}  Nf6 {[%clk 0:02:57]} 4. e5 {[%clk 0:02:48]}  Nd5 {[%clk 0:02:57]} 5. Nf3 {[%clk 0:02:40]}  Nc6 {[%clk 0:02:55]} 6. Bd3 {[%clk 0:02:39]}  dxc3 {[%clk 0:02:50]} 7. bxc3 {[%clk 0:02:38]}  g6 {[%clk 0:02:49]} 8. O-O {[%clk 0:02:37]}  Nb6 {[%clk 0:02:46]} 9. Qe2 {[%clk 0:02:36]}  Bg7 {[%clk 0:02:46]} 10. Re1 {[%clk 0:02:36]}  O-O {[%clk 0:02:45]} 11. Na3 {[%clk 0:02:36]}  d6 {[%clk 0:02:42]} 12. exd6 {[%clk 0:02:34]}  Qxd6 {[%clk 0:02:43]} 13. h3 {[%clk 0:02:33]}  Bxc3 {[%clk 0:02:40]} 14. Bb2 {[%clk 0:02:28]}  Bxb2 {[%clk 0:02:32]} 15. Qxb2 {[%clk 0:02:28]}  Be6 {[%clk 0:02:30]} 0-1


[Site "https://www.chess.com"]

[Event "Titled Tuesday Blitz December 20 Late 2022"]
[White "Carlsen, Magnus"]
[Black "Makarian, Rudik"]
[WhiteFideId "1503014"]
[BlackFideId "44105681"]
[WhiteElo "2830"]
[BlackElo "2440"]
[Result "1-0"]
[Round "04"]
[TimeControl "180+1"]
[Date "2022.12.20"]
[WhiteClock "0:01:54"]
[BlackClock "0:00:24"]

1. Nf3 {[%clk 0:03:00]}  Nf6 {[%clk 0:02:59]} 2. g3 {[%clk 0:02:56]}  b5 {[%clk 0:02:59]} 3. Bg2 {[%clk 0:02:57]}  Bb7 {[%clk 0:02:59]} 4. Na3 {[%clk 0:02:56]}  a6 {[%clk 0:02:58]} 5. c4 {[%clk 0:02:56]}  b4 {[%clk 0:02:59]} 6. Nc2 {[%clk 0:02:56]}  e6 {[%clk 0:02:59]} 7. O-O {[%clk 0:02:56]}  Be7 {[%clk 0:03:00]} 8. d4 {[%clk 0:02:57]}  O-O {[%clk 0:03:00]} 9. a3 {[%clk 0:02:52]}  a5 {[%clk 0:03:00]} 10. axb4 {[%clk 0:02:52]}  axb4 {[%clk 0:03:00]} 11. Rxa8 {[%clk 0:02:53]}  Bxa8 {[%clk 0:03:01]} 12. Bd2 {[%clk 0:02:49]}  Na6 {[%clk 0:02:49]} 13. Qa1 {[%clk 0:02:49]}  Bb7 {[%clk 0:02:43]} 14. Ne5 {[%clk 0:02:40]}  Qa8 {[%clk 0:02:39]} 15. Bxb7 {[%clk 0:02:39]}  Qxb7 {[%clk 0:02:40]} 16. Qa4 {[%clk 0:02:39]}  c6 {[%clk 0:02:27]} 17. Ra1 {[%clk 0:02:33]}  Ra8 {[%clk 0:02:26]} 18. Qb3 {[%clk 0:02:29]}  d6 {[%clk 0:02:17]} 19. Nd3 {[%clk 0:02:28]}  c5 {[%clk 0:02:17]} 20. dxc5 {[%clk 0:02:27]}  dxc5 {[%clk 0:02:13]} 21. Be3 {[%clk 0:02:23]}  Nd7 {[%clk 0:02:01]} 22. Nce1 {[%clk 0:02:16]}  Nc7 {[%clk 0:01:58]} 23. Rxa8+ {[%clk 0:02:13]}  Qxa8 {[%clk 0:01:59]} 24. Qd1 {[%clk 0:02:13]}  Qc6 {[%clk 0:01:56]} 25. Nf3 {[%clk 0:02:13]}  Bf6 {[%clk 0:01:51]} 26. b3 {[%clk 0:02:13]}  h6 {[%clk 0:01:49]} 27. Bf4 {[%clk 0:01:59]}  Ne8 {[%clk 0:01:40]} 28. h4 {[%clk 0:01:58]}  Qe4 {[%clk 0:01:21]} 29. Nxb4 {[%clk 0:01:58]}  Qb7 {[%clk 0:00:46]} 30. Nd3 {[%clk 0:01:58]}  h5 {[%clk 0:00:45]} 31. Be3 {[%clk 0:01:58]}  Qc6 {[%clk 0:00:44]} 32. Qd2 {[%clk 0:01:56]}  Nd6 {[%clk 0:00:43]} 33. Qa5 {[%clk 0:01:56]}  Ne4 {[%clk 0:00:41]} 34. Qa4 {[%clk 0:01:54]}  Qc7 {[%clk 0:00:24]} 35. Qa8+ {[%clk 0:01:54]} 1-0


[Site "https://www.chess.com"]

[Event "Titled Tuesday Blitz December 20 Late 2022"]
[White "ChessBrah"]
[Black "Renjith, Sravan"]
[BlackFideId "4306783"]
[WhiteElo "2888"]
[BlackElo "2072"]
[Result "1-0"]
[Round "04"]
[TimeControl "180+1"]
[Date "2022.12.21"]
[WhiteClock "0:00:34"]
[BlackClock "0:00:03"]

1. e4 {[%clk 0:02:58]}  e5 {[%clk 0:02:58]} 2. Nf3 {[%clk 0:02:58]}  Nf6 {[%clk 0:02:53]} 3. Nxe5 {[%clk 0:02:57]}  d6 {[%clk 0:02:53]} 4. Nf3 {[%clk 0:02:58]}  Nxe4 {[%clk 0:02:53]} 5. Nc3 {[%clk 0:02:53]}  Nxc3 {[%clk 0:02:53]} 6. dxc3 {[%clk 0:02:54]}  Be7 {[%clk 0:02:53]} 7. Be3 {[%clk 0:02:54]}  O-O {[%clk 0:02:52]} 8. Qd2 {[%clk 0:02:54]}  Nc6 {[%clk 0:02:48]} 9. O-O-O {[%clk 0:02:54]}  Be6 {[%clk 0:02:47]} 10. Kb1 {[%clk 0:02:54]}  Bf6 {[%clk 0:02:47]} 11. Ng5 {[%clk 0:02:53]}  Bf5 {[%clk 0:02:43]} 12. h4 {[%clk 0:02:49]}  Ne5 {[%clk 0:02:29]} 13. f3 {[%clk 0:02:42]}  h6 {[%clk 0:02:15]} 14. Be2 {[%clk 0:02:40]}  Re8 {[%clk 0:02:08]} 15. g4 {[%clk 0:02:32]}  Bg6 {[%clk 0:02:06]} 16. f4 {[%clk 0:02:31]}  Qe7 {[%clk 0:01:02]} 17. h5 {[%clk 0:02:05]}  hxg5 {[%clk 0:00:47]} 18. fxg5 {[%clk 0:01:59]}  Be4 {[%clk 0:00:32]} 19. gxf6 {[%clk 0:01:58]}  Qxf6 {[%clk 0:00:32]} 20. Rhf1 {[%clk 0:01:55]}  Qe6 {[%clk 0:00:33]} 21. Rf4 {[%clk 0:01:18]}  Nc4 {[%clk 0:00:29]} 22. Bxc4 {[%clk 0:01:18]}  Qxc4 {[%clk 0:00:29]} 23. Rdf1 {[%clk 0:01:14]}  Re7 {[%clk 0:00:16]} 24. h6 {[%clk 0:01:12]}  Qd5 {[%clk 0:00:16]} 25. Qh2 {[%clk 0:01:08]}  gxh6 {[%clk 0:00:12]} 26. Bd4 {[%clk 0:01:01]}  Bh7 {[%clk 0:00:08]} 27. Qxh6 {[%clk 0:00:58]}  f5 {[%clk 0:00:03]} 28. gxf5 {[%clk 0:00:48]}  Qg2 {[%clk 0:00:04]} 29. b3 {[%clk 0:00:42]}  Rae8 {[%clk 0:00:03]} 30. Qf6 {[%clk 0:00:36]}  Re1+ {[%clk 0:00:03]} 31. Kb2 {[%clk 0:00:36]}  Rxf1 {[%clk 0:00:02]} 32. Qh8+ {[%clk 0:00:34]}  Kf7 {[%clk 0:00:02]} 33. Qxh7+ {[%clk 0:00:34]}  Kf8 {[%clk 0:00:03]} 34. Rxf1 {[%clk 0:00:34]}  Re7 {[%clk 0:00:02]} 35. Qh8+ {[%clk 0:00:34]}  Kf7 {[%clk 0:00:03]} 36. Rh1 {[%clk 0:00:34]} 1-0


[Site "https://www.chess.com"]

[Event "Titled Tuesday Blitz December 20 Late 2022"]
[White "Crevatin, Leo"]
[Black "Skibbe, Willi"]
[WhiteFideId "1726307"]
[BlackFideId "4682190"]
[WhiteElo "2190"]
[BlackElo "2355"]
[Result "1-0"]
[Round "04"]
[TimeControl "180+1"]
[Date "2022.12.21"]
[WhiteClock "0:01:01"]
[BlackClock "0:00:01"]

1. d4 {[%clk 0:03:00]}  d5 {[%clk 0:02:59]} 2. Bf4 {[%clk 0:03:01]}  c5 {[%clk 0:02:58]} 3. e3 {[%clk 0:03:01]}  cxd4 {[%clk 0:02:58]} 4. exd4 {[%clk 0:03:01]}  Nc6 {[%clk 0:02:58]} 5. c3 {[%clk 0:02:57]}  Bf5 {[%clk 0:02:58]} 6. Qb3 {[%clk 0:02:51]}  Qd7 {[%clk 0:02:58]} 7. Nf3 {[%clk 0:02:49]}  e6 {[%clk 0:02:58]} 8. Be2 {[%clk 0:02:39]}  f6 {[%clk 0:02:21]} 9. Nh4 {[%clk 0:02:36]}  Bxb1 {[%clk 0:02:19]} 10. Rxb1 {[%clk 0:02:33]}  g5 {[%clk 0:02:18]} 11. Bh5+ {[%clk 0:02:29]}  Kd8 {[%clk 0:02:17]} 12. Bg3 {[%clk 0:02:27]}  gxh4 {[%clk 0:02:16]} 13. Bxh4 {[%clk 0:02:28]}  Be7 {[%clk 0:02:12]} 14. O-O {[%clk 0:02:25]}  f5 {[%clk 0:02:12]} 15. Bg3 {[%clk 0:02:24]}  Nf6 {[%clk 0:01:59]} 16. Bf3 {[%clk 0:02:24]}  Ne4 {[%clk 0:01:45]} 17. Bxe4 {[%clk 0:02:23]}  fxe4 {[%clk 0:01:44]} 18. f3 {[%clk 0:02:23]}  exf3 {[%clk 0:01:40]} 19. Rxf3 {[%clk 0:02:24]}  Rf8 {[%clk 0:01:34]} 20. Rxf8+ {[%clk 0:02:23]}  Bxf8 {[%clk 0:01:35]} 21. Rf1 {[%clk 0:02:23]}  Be7 {[%clk 0:01:33]} 22. Rf7 {[%clk 0:02:20]}  h5 {[%clk 0:01:30]} 23. Rh7 {[%clk 0:02:18]}  Kc8 {[%clk 0:01:22]} 24. Qb5 {[%clk 0:01:41]}  a6 {[%clk 0:01:06]} 25. Rh8+ {[%clk 0:01:29]}  Bd8 {[%clk 0:00:56]} 26. Qe2 {[%clk 0:01:28]}  b5 {[%clk 0:00:50]} 27. Qxh5 {[%clk 0:01:27]}  Kb7 {[%clk 0:00:50]} 28. h4 {[%clk 0:01:20]}  Be7 {[%clk 0:00:48]} 29. Rxa8 {[%clk 0:01:19]}  Kxa8 {[%clk 0:00:48]} 30. Qg6 {[%clk 0:01:16]}  Bd8 {[%clk 0:00:22]} 31. h5 {[%clk 0:01:14]}  Ne7 {[%clk 0:00:22]} 32. Qf7 {[%clk 0:01:10]}  Qc8 {[%clk 0:00:10]} 33. h6 {[%clk 0:01:08]}  Nf5 {[%clk 0:00:07]} 34. h7 {[%clk 0:01:05]}  Bg5 {[%clk 0:00:01]} 35. Qg8 {[%clk 0:01:01]} 1-0


[Site "https://www.chess.com"]

[Event "Titled Tuesday Blitz December 20 Late 2022"]
[White "Cruz Mendez, Jean Marco"]
[Black "Wieczorek, Oskar"]
[WhiteFideId "3526402"]
[BlackFideId "1133950"]
[WhiteElo "2064"]
[BlackElo "2415"]
[Result "1-0"]
[Round "04"]
[TimeControl "180+1"]
[Date "2022.12.21"]
[WhiteClock "0:00:32"]
[BlackClock "0:00:01"]

1. e4 {[%clk 0:03:00]}  c5 {[%clk 0:02:57]} 2. Nf3 {[%clk 0:03:00]}  e6 {[%clk 0:02:58]} 3. d4 {[%clk 0:02:59]}  cxd4 {[%clk 0:02:59]} 4. Nxd4 {[%clk 0:03:00]}  Nf6 {[%clk 0:02:59]} 5. Nc3 {[%clk 0:03:00]}  d6 {[%clk 0:03:00]} 6. Bg5 {[%clk 0:02:58]}  h6 {[%clk 0:02:34]} 7. Be3 {[%clk 0:02:54]}  a6 {[%clk 0:02:30]} 8. f4 {[%clk 0:02:50]}  b5 {[%clk 0:02:28]} 9. a3 {[%clk 0:02:50]}  Bb7 {[%clk 0:02:28]} 10. Bd3 {[%clk 0:02:47]}  Nbd7 {[%clk 0:02:27]} 11. Qe2 {[%clk 0:02:42]}  Rc8 {[%clk 0:02:26]} 12. O-O {[%clk 0:02:35]}  Rxc3 {[%clk 0:02:22]} 13. bxc3 {[%clk 0:02:34]}  Nxe4 {[%clk 0:02:22]} 14. Bd2 {[%clk 0:02:25]}  Ndc5 {[%clk 0:02:11]} 15. f5 {[%clk 0:02:22]}  e5 {[%clk 0:02:08]} 16. Ne6 {[%clk 0:02:07]}  fxe6 {[%clk 0:02:01]} 17. fxe6 {[%clk 0:02:07]}  Qh4 {[%clk 0:01:18]} 18. Rf7 {[%clk 0:02:01]}  Be7 {[%clk 0:00:48]} 19. Raf1 {[%clk 0:01:55]}  Nxd2 {[%clk 0:00:40]} 20. Bg6 {[%clk 0:01:41]}  Kd8 {[%clk 0:00:27]} 21. Qxd2 {[%clk 0:01:21]}  Qg5 {[%clk 0:00:27]} 22. Qxg5 {[%clk 0:01:00]}  hxg5 {[%clk 0:00:28]} 23. Bf5 {[%clk 0:00:53]}  Bd5 {[%clk 0:00:22]} 24. Rxg7 {[%clk 0:00:50]}  Nxe6 {[%clk 0:00:22]} 25. Bxe6 {[%clk 0:00:46]}  Bxe6 {[%clk 0:00:23]} 26. Ra1 {[%clk 0:00:37]}  d5 {[%clk 0:00:11]} 27. a4 {[%clk 0:00:35]}  b4 {[%clk 0:00:07]} 28. cxb4 {[%clk 0:00:36]}  e4 {[%clk 0:00:07]} 29. Rb1 {[%clk 0:00:37]}  Kd7 {[%clk 0:00:05]} 30. b5 {[%clk 0:00:36]}  a5 {[%clk 0:00:04]} 31. b6 {[%clk 0:00:36]}  Rb8 {[%clk 0:00:05]} 32. b7 {[%clk 0:00:35]}  Kd6 {[%clk 0:00:04]} 33. Rb6+ {[%clk 0:00:35]}  Kd7 {[%clk 0:00:04]} 34. Kf2 {[%clk 0:00:33]}  d4 {[%clk 0:00:01]} 35. Ke2 {[%clk 0:00:32]} 1-0


[Site "https://www.chess.com"]

[Event "Titled Tuesday Blitz December 20 Late 2022"]
[White "Curtis, John"]
[Black "Forgacs, Attila Jr."]
[WhiteFideId "3200256"]
[BlackFideId "773654"]
[WhiteElo "2203"]
[BlackElo "2168"]
[Result "0-1"]
[Round "04"]
[TimeControl "180+1"]
[Date "2022.12.21"]
[WhiteClock "0:00:01"]
[BlackClock "0:00:18"]

1. e4 {[%clk 0:03:00]}  e5 {[%clk 0:03:00]} 2. Nf3 {[%clk 0:03:00]}  Nc6 {[%clk 0:03:00]} 3. Bc4 {[%clk 0:03:00]}  Nf6 {[%clk 0:03:00]} 4. d3 {[%clk 0:03:00]}  h6 {[%clk 0:03:00]} 5. c3 {[%clk 0:03:00]}  d6 {[%clk 0:03:01]} 6. b4 {[%clk 0:03:00]}  g5 {[%clk 0:03:00]} 7. Nbd2 {[%clk 0:02:51]}  Bg7 {[%clk 0:03:00]} 8. Qb3 {[%clk 0:02:50]}  O-O {[%clk 0:03:00]} 9. Nf1 {[%clk 0:02:50]}  Ne7 {[%clk 0:03:00]} 10. Ne3 {[%clk 0:02:49]}  c6 {[%clk 0:02:59]} 11. Qc2 {[%clk 0:02:41]}  d5 {[%clk 0:02:49]} 12. Bb3 {[%clk 0:02:39]}  Ng6 {[%clk 0:02:37]} 13. O-O {[%clk 0:02:25]}  Re8 {[%clk 0:02:15]} 14. Re1 {[%clk 0:02:19]}  g4 {[%clk 0:02:10]} 15. Nd2 {[%clk 0:02:17]}  Nf4 {[%clk 0:02:05]} 16. c4 {[%clk 0:01:39]}  d4 {[%clk 0:01:58]} 17. Nf5 {[%clk 0:01:28]}  Bxf5 {[%clk 0:01:57]} 18. exf5 {[%clk 0:01:28]}  Qd7 {[%clk 0:01:57]} 19. Ne4 {[%clk 0:01:27]}  Qxf5 {[%clk 0:01:38]} 20. Bxf4 {[%clk 0:01:07]}  Nxe4 {[%clk 0:01:17]} 21. Rxe4 {[%clk 0:01:03]}  exf4 {[%clk 0:01:14]} 22. Rae1 {[%clk 0:01:01]}  Rxe4 {[%clk 0:01:13]} 23. Rxe4 {[%clk 0:01:01]}  f3 {[%clk 0:01:13]} 24. c5 {[%clk 0:00:49]}  fxg2 {[%clk 0:01:06]} 25. Qe2 {[%clk 0:00:46]}  Rf8 {[%clk 0:01:00]} 26. Qxg4 {[%clk 0:00:39]}  Qxg4 {[%clk 0:00:55]} 27. Rxg4 {[%clk 0:00:37]}  Re8 {[%clk 0:00:56]} 28. Rf4 {[%clk 0:00:30]}  Re7 {[%clk 0:00:54]} 29. Kxg2 {[%clk 0:00:29]}  Be5 {[%clk 0:00:48]} 30. Rf5 {[%clk 0:00:24]}  Kg7 {[%clk 0:00:45]} 31. Bxf7 {[%clk 0:00:20]}  Bxh2 {[%clk 0:00:44]} 32. Bh5 {[%clk 0:00:13]}  Be5 {[%clk 0:00:38]} 33. Bf3 {[%clk 0:00:13]}  Bf6 {[%clk 0:00:36]} 34. Be4 {[%clk 0:00:12]}  Re8 {[%clk 0:00:29]} 35. Kf3 {[%clk 0:00:10]}  a5 {[%clk 0:00:29]} 36. b5 {[%clk 0:00:09]}  Rc8 {[%clk 0:00:17]} 37. bxc6 {[%clk 0:00:04]}  bxc6 {[%clk 0:00:18]} 38. Rf4 {[%clk 0:00:01]}  a4 {[%clk 0:00:18]} 0-1


[Site "https://www.chess.com"]

[Event "Titled Tuesday Blitz December 20 Late 2022"]
[White "Delorme, Axel"]
[Black "Kleiman, Jake"]
[WhiteFideId "632023"]
[BlackFideId "2020041"]
[WhiteElo "2478"]
[BlackElo "2642"]
[Result "0-1"]
[Round "04"]
[TimeControl "180+1"]
[Date "2022.12.21"]
[WhiteClock "0:00:29"]
[BlackClock "0:01:44"]

1. e4 {[%clk 0:03:00]}  e5 {[%clk 0:02:59]} 2. Nf3 {[%clk 0:03:00]}  Nc6 {[%clk 0:03:00]} 3. Bb5 {[%clk 0:03:01]}  a6 {[%clk 0:03:01]} 4. Ba4 {[%clk 0:03:01]}  Nf6 {[%clk 0:03:01]} 5. O-O {[%clk 0:03:02]}  b5 {[%clk 0:03:02]} 6. Bb3 {[%clk 0:03:02]}  Bc5 {[%clk 0:03:03]} 7. c3 {[%clk 0:03:02]}  d6 {[%clk 0:03:03]} 8. a4 {[%clk 0:03:03]}  Rb8 {[%clk 0:03:03]} 9. d4 {[%clk 0:03:03]}  Bb6 {[%clk 0:03:03]} 10. a5 {[%clk 0:03:03]}  Ba7 {[%clk 0:03:03]} 11. h3 {[%clk 0:03:04]}  h6 {[%clk 0:03:03]} 12. Be3 {[%clk 0:03:01]}  Ra8 {[%clk 0:03:03]} 13. Nbd2 {[%clk 0:03:01]}  O-O {[%clk 0:03:03]} 14. Re1 {[%clk 0:03:01]}  Re8 {[%clk 0:03:03]} 15. Qc2 {[%clk 0:03:01]}  Bb7 {[%clk 0:03:04]} 16. dxe5 {[%clk 0:02:34]}  Bxe3 {[%clk 0:02:55]} 17. Rxe3 {[%clk 0:02:30]}  Nxe5 {[%clk 0:02:53]} 18. Rae1 {[%clk 0:02:21]}  c5 {[%clk 0:02:48]} 19. Nxe5 {[%clk 0:02:20]}  dxe5 {[%clk 0:02:48]} 20. Rd3 {[%clk 0:02:01]}  Qxa5 {[%clk 0:02:47]} 21. Bd5 {[%clk 0:02:00]}  c4 {[%clk 0:02:35]} 22. Rde3 {[%clk 0:01:49]}  Nxd5 {[%clk 0:02:24]} 23. exd5 {[%clk 0:01:50]}  Bxd5 {[%clk 0:02:18]} 24. Rxe5 {[%clk 0:01:49]}  Rxe5 {[%clk 0:02:17]} 25. Rxe5 {[%clk 0:01:50]}  Rd8 {[%clk 0:02:14]} 26. Kh2 {[%clk 0:01:30]}  Qc7 {[%clk 0:02:08]} 27. f4 {[%clk 0:01:23]}  f6 {[%clk 0:02:08]} 28. Re3 {[%clk 0:01:01]}  Qxf4+ {[%clk 0:02:03]} 29. Rg3 {[%clk 0:01:02]}  Bf7 {[%clk 0:01:49]} 30. Ne4 {[%clk 0:00:42]}  Rd3 {[%clk 0:01:46]} 31. Qf2 {[%clk 0:00:29]}  Qxe4 {[%clk 0:01:46]} 32. Qxf6 {[%clk 0:00:29]}  Rxg3 {[%clk 0:01:45]} 33. Qd8+ {[%clk 0:00:29]}  Qe8 {[%clk 0:01:44]} 0-1


[Site "https://www.chess.com"]

[Event "Titled Tuesday Blitz December 20 Late 2022"]
[White "Denishev, Marat"]
[Black "Rengifo Blancas, Renzo Jhonathan"]
[WhiteFideId "24131563"]
[BlackFideId "3807185"]
[WhiteElo "2194"]
[BlackElo "2058"]
[Result "1-0"]
[Round "04"]
[TimeControl "180+1"]
[Date "2022.12.21"]
[WhiteClock "0:01:20"]
[BlackClock "0:00:01"]

1. e4 {[%clk 0:03:00]}  e5 {[%clk 0:02:59]} 2. Nf3 {[%clk 0:02:58]}  Nc6 {[%clk 0:02:59]} 3. Bb5 {[%clk 0:02:57]}  Nd4 {[%clk 0:02:58]} 4. Nxd4 {[%clk 0:02:56]}  exd4 {[%clk 0:02:59]} 5. O-O {[%clk 0:02:54]}  Bc5 {[%clk 0:02:59]} 6. c3 {[%clk 0:02:53]}  Ne7 {[%clk 0:02:47]} 7. Qh5 {[%clk 0:02:42]}  Bb6 {[%clk 0:02:40]} 8. d3 {[%clk 0:02:39]}  O-O {[%clk 0:02:37]} 9. Bg5 {[%clk 0:02:37]}  h6 {[%clk 0:02:32]} 10. Bh4 {[%clk 0:02:31]}  g5 {[%clk 0:02:29]} 11. Bg3 {[%clk 0:02:15]}  d5 {[%clk 0:01:32]} 12. Qxh6 {[%clk 0:02:08]}  Ng6 {[%clk 0:01:31]} 13. exd5 {[%clk 0:02:05]}  Qf6 {[%clk 0:00:52]} 14. Nd2 {[%clk 0:01:54]}  dxc3 {[%clk 0:00:52]} 15. Ne4 {[%clk 0:01:51]}  Qg7 {[%clk 0:00:52]} 16. Qxg7+ {[%clk 0:01:50]}  Kxg7 {[%clk 0:00:53]} 17. bxc3 {[%clk 0:01:50]}  a6 {[%clk 0:00:35]} 18. Ba4 {[%clk 0:01:43]}  Bf5 {[%clk 0:00:35]} 19. Rfe1 {[%clk 0:01:37]}  Rad8 {[%clk 0:00:31]} 20. Bb3 {[%clk 0:01:36]}  f6 {[%clk 0:00:15]} 21. Rad1 {[%clk 0:01:34]}  Rfe8 {[%clk 0:00:14]} 22. Kf1 {[%clk 0:01:33]}  Ne7 {[%clk 0:00:14]} 23. d6 {[%clk 0:01:30]}  Bxe4 {[%clk 0:00:11]} 24. Rxe4 {[%clk 0:01:25]}  cxd6 {[%clk 0:00:10]} 25. Rde1 {[%clk 0:01:23]}  Rd7 {[%clk 0:00:08]} 26. Ba4 {[%clk 0:01:23]}  d5 {[%clk 0:00:01]} 27. Re6 {[%clk 0:01:20]} 1-0


[Site "https://www.chess.com"]